{"text_format":"3","workbook":"xlsx","n_sheets":2,"sheets":["TabelaP","ListaGmin"],"not_rendered":{"macros":1,"defined_names":2},"read":"whole","date_system":"1900"}

{"sheet":"TabelaP","index":0,"n_rows":35,"n_cols":26,"rows_kept":35,"merged":[[0,0,0,25],[2,1,2,4],[2,22,2,24],[4,0,4,14],[5,0,7,0],[5,1,7,1],[5,2,5,25],[6,2,6,4],[6,5,6,7],[6,8,6,10],[6,11,6,13],[6,14,6,16],[6,17,6,19],[6,20,6,22],[6,23,6,25],[7,2,7,4],[7,5,7,7],[7,8,7,10],[7,11,7,13],[7,14,7,16],[7,17,7,19],[7,20,7,22],[7,23,7,25],[8,0,9,1],[10,0,11,0],[10,23,15,23],[10,24,15,24],[10,25,15,25],[12,0,13,0],[14,0,15,0],[16,0,17,0],[16,2,17,2],[16,5,17,5],[16,8,17,8],[16,11,17,11],[16,14,17,14],[16,17,17,17],[16,20,17,20],[16,23,17,23],[16,24,17,24],[16,25,17,25],[19,0,19,22],[20,23,20,25],[25,1,25,8],[26,2,26,8],[27,2,27,8],[28,2,28,8],[29,2,29,8],[30,2,30,8],[31,2,31,8],[32,2,32,8],[33,2,33,8],[34,2,34,8]]}
["TABELA „Wyprawka szkolna” w 2019 r. – szacunkowe dane dot. liczby uczniów planowanych do objęcia wspraciem finansowym w ramach programu\n                                                                                                                                                                                                                                                                                                                                                                                                                       "]
[]
["Powiat:",{"$nulls":21},"Wnioskowana kwota dotacji",null,null,{"$f":"SUM(E17+H17+K17+N17+Q17+T17+W17+Z17)+SUM(E18+H18+K18+N18+Q18+T18+W18)","v":0}]
[]
[]
["Nazwa typu jednostek","rodzaj szkoły ","Liczba uczniów posiadających orzeczenie o potrzebie kształcenia specjalnego, o którym mowa w art. 127 ust. 10 ustawy z dnia 14 grudnia 2016 r. – Prawo oświatowe (Dz. U. z 2018 r. poz. 996, z późn. zm. ), albo orzeczenie o potrzebie kształcenia specjalnego, o którym mowa w art. 312 ust. 1 ustawy z dnia 14 grudnia 2016 r. – Przepisy wprowadzające ustawę – Prawo oświatowe (Dz. U. z 2017 r. poz. 60, 949, 2203 i 2245) uczęszczających w roku szkolnym 2019/2020 do szkół:branżowej szkoły I stopnia, klasy I czteroletniego liceum ogólnokształcącego, klas I–III dotychczasowego liceum ogólnokształcącego prowadzonych w czteroletnim liceum ogólnokształcącym, klasy I pięcioletniego technikum, klas I–IV dotychczasowego czteroletniego technikum prowadzonych w pięcioletnim technikum, szkoły specjalnej przysposabiającej do pracy, klas III–VI ogólnokształcącej szkoły muzycznej II stopnia, klas VI–IX ogólnokształcącej szkoły baletowej, klasy I liceum sztuk plastycznych, klas IV–VI ogólnokształcącej szkoły sztuk pięknych, klas I–IV liceum plastycznego prowadzonych w liceum sztuk plastycznych lub klas IV–VI ogólnokształcącej szkoły sztuk pięknych prowadzonych w liceum sztuk plastycznych."]
[null,null,"słabowidzący",null,null,"słabosłyszący",null,null,"z autyzmem, \nw tym z zespołem Aspergera",null,null,"z niepełnosprawnością ruchową, \nw tym z afazją",null,null,"niesłyszący",null,null,"z upośledzeniem umysłowym \nw stopniu lekkim",null,null,"z upośledzeniem umysłowym w stopniu umiarkowanym lub znacznym za wyjątkiem uczniów szkół przysposabiających do pracy",null,null,"szkoła specjalna przysposabiająca             do pracy"]
[null,null,"zakup podręczników i/lub materiałów edukacyjnych",null,null,"zakup podręczników i/lub materiałów edukacyjnych",null,null,"zakup podręczników i/lub materiałów edukacyjnych",null,null,"zakup podręczników i/lub materiałów edukacyjnych",null,null,"zakup podręczników i/lub materiałów edukacyjnych",null,null,"zakup podręczników i/lub materiałów edukacyjnych",null,null,"zakup podręczników i/lub materiałów edukacyjnych",null,null,"zakup podręczników i/lub materiałów edukacyjnych"]
[null,null,"1","2","3","4","5","6","7","8","9","10","11","12","13","14","15","16","17","18","22","23","24","25","26","27"]
[null,null,"cena podręczników","liczba uczniów","wysokość dotacji","cena podręczników","liczba uczniów","wysokość dotacji","cena podręczników","liczba uczniów","wysokość dotacji","cena podręczników","liczba uczniów","wysokość dotacji","cena podręczników","liczba uczniów","wysokość dotacji","cena podręczników","liczba uczniów","wysokość dotacji","cena podręczników","liczba uczniów","wysokość dotacji","cena podręczników","liczba uczniów","wysokość dotacji"]
["branżowa szkoła I stopnia","ogólnodostępna",390,null,{"$f":"C11*D11","v":0},390,null,{"$f":"F11*G11","v":0},390,null,{"$f":"I11*J11","v":0},390,null,{"$f":"L11*M11","v":0},390,null,{"$f":"O11*P11","v":0},390,null,{"$f":"R11*S11","v":0},225,null,{"$f":"U11*V11","v":0},225,null,{"$f":"X11*Y11","v":0}]
[null,"specjalna",390,null,{"$f":"C12*D12","v":0},390,null,{"$f":"F12*G12","v":0},390,null,{"$f":"I12*J12","v":0},390,null,{"$f":"L12*M12","v":0},390,null,{"$f":"O12*P12","v":0},390,null,{"$f":"R12*S12","v":0},225,null,{"$f":"U12*V12","v":0}]
["liceum ogólnokształcące*","ogólnodostępna",445,null,0,445,null,0,445,null,0,445,null,0,445,null,0,445,null,0,225,null,0]
[null,"specjalna",445,null,0,445,null,0,445,null,0,445,null,0,445,null,0,445,null,0,225,null,0]
["technikum*","ogólnodostępna",445,null,0,445,null,0,445,null,0,445,null,0,445,null,0,445,null,0,225,null,0]
[null,"specjalna",445,null,0,445,null,0,445,null,0,445,null,0,445,null,0,445,null,0,225,null,0]
["ogółem","ogólnodostępna","X",{"$f":"D11+D13+D15","v":0},{"$f":"E11+E13+E15","v":0},"X",{"$f":"G11+G13+G15","v":0},{"$f":"H11+H13+H15","v":0},"X",{"$f":"J11+J13+J15","v":0},{"$f":"K11+K13+K15","v":0},"X",{"$f":"M11+M13+M15","v":0},{"$f":"N11+N13+N15","v":0},"X",{"$f":"P11+P13+P15","v":0},{"$f":"Q11+Q13+Q15","v":0},"X",{"$f":"S11+S13+S15","v":0},{"$f":"T11+T13+T15","v":0},"X",{"$f":"V11+V13+V15","v":0},{"$f":"W11+W13+W15","v":0},"X",{"$f":"Y11","v":0},{"$f":"Z11","v":0}]
[null,"specjalna",null,{"$f":"D12+D14+D16","v":0},{"$f":"E12+E14+E16","v":0},null,{"$f":"G12+G14+G16","v":0},{"$f":"H12+H14+H16","v":0},null,{"$f":"J12+J14+J16","v":0},{"$f":"K12+K14+K16","v":0},null,{"$f":"M12+M14+M16","v":0},{"$f":"N12+N14+N16","v":0},null,{"$f":"P12+P14+P16","v":0},{"$f":"Q12+Q14+Q16","v":0},null,{"$f":"S12+S14+S16","v":0},{"$f":"T12+T14+T16","v":0},null,{"$f":"V12+V14+V16","v":0},{"$f":"W12+W14+W16","v":0}]
[]
["* oraz odpowiednich klas szkół artystycznych  prowadzonych przez Ministra Kultury i Dziedzictwa Narodowego, szkół prowadzonych przez Ministra Rolnictwa i Rozwoju Wsi,  szkół prowadzonych przez Ministra Środowiska oraz szkół prowadzonych przez Ministra Gospodarki Morskiej i Żeglugi Śródlądowej"]
[]
[]
[]
[]
[]
[null,"DANE KONTAKTOWE"]
[]
[null,"sporządził(a):"]
[]
[null,"telefon:"]
[]
[null,"email:"]
[]
[null,"podpis:"]
[null,null,"………………………………………………………………………………………………………………………………….………"]

{"sheet":"ListaGmin","index":1,"n_rows":24,"n_cols":8,"rows_kept":24,"hidden":true}
["4","gmina_wszystko","idTerytGmina","powiat","gmina","idRodzajGminy","rodzaj_gminy","kod2"]
[5,"Powiat aleksandrowski","0401","aleksandrowski",{"$nulls":3},5]
[6,"Powiat brodnicki","0402","brodnicki",{"$nulls":3},6]
[7,"Powiat bydgoski","0403","bydgoski",{"$nulls":3},7]
[8,"Powiat chełmiński","0404","chełmiński",{"$nulls":3},8]
[9,"Powiat golubsko-dobrzyński","0405","golubsko-dobrzyński",{"$nulls":3},9]
[10,"Powiat grudziądzki","0406","grudziądzki",{"$nulls":3},10]
[11,"Powiat inowrocławski","0407","inowrocławski",{"$nulls":3},11]
[12,"Powiat lipnowski","0408","lipnowski",{"$nulls":3},12]
[13,"Powiat mogileński","0409","mogileński",{"$nulls":3},13]
[14,"Powiat nakielski","0410","nakielski",{"$nulls":3},14]
[15,"Powiat radziejowski","0411","radziejowski",{"$nulls":3},15]
[16,"Powiat rypiński","0412","rypiński",{"$nulls":3},16]
[17,"Powiat sępoleński","0413","sępoleński",{"$nulls":3},17]
[18,"Powiat świecki","0414","świecki",{"$nulls":3},18]
[19,"Powiat toruński","0415","toruński",{"$nulls":3},19]
[20,"Powiat tucholski","0416","tucholski",{"$nulls":3},20]
[21,"Powiat wąbrzeski","0417","wąbrzeski",{"$nulls":3},21]
[22,"Powiat włocławski","0418","włocławski",{"$nulls":3},22]
[23,"Powiat żniński","0419","żniński",{"$nulls":3},23]
[201,"Miasto na prawach powiatu Bydgoszcz","0461","Bydgoszcz",{"$nulls":3},201]
[202,"Miasto na prawach powiatu Grudziądz","0462","Grudziądz",{"$nulls":3},202]
[203,"Miasto na prawach powiatu Toruń","0463","Toruń",{"$nulls":3},203]
[204,"Miasto na prawach powiatu Włocławek","0464","Włocławek",{"$nulls":3},204]